Department Family,Date Paid,Expense Type,Expense Area,Supplier,Transaction Number,Amount,Vat Inclusive
Crown Prosecution Service ,04/05/22,Overseas Residential accommodation,Intl Liaison Prosecutors,Foreign And Commonwealth Office,1143563,"13,725.00",
Crown Prosecution Service ,04/05/22,Overseas Residential accommodation,Intl Liaison Prosecutors,Foreign And Commonwealth Office,1143563,"63,443.21",
Crown Prosecution Service ,04/05/22,Overseas Residential accommodation,Intl External Funding,Foreign And Commonwealth Office,1143563,"6,375.00",
Crown Prosecution Service ,04/05/22,FCO platform charges excluding leases,Intl External Funding,Foreign And Commonwealth Office,1143563,"7,325.00",
Crown Prosecution Service ,04/05/22,FCO platform charges excluding leases,Intl Internal Funding,Foreign And Commonwealth Office,1143563,"48,763.25",
Crown Prosecution Service ,04/05/22,Overseas Residential accommodation,Intl Liaison Prosecutors,Foreign And Commonwealth Office,1143563,"11,575.00",
Crown Prosecution Service ,04/05/22,Overseas Residential accommodation,Intl Liaison Prosecutors,Foreign And Commonwealth Office,1143563,"12,079.11",
Crown Prosecution Service ,04/05/22,Overseas Residential accommodation,Intl Liaison Prosecutors,Foreign And Commonwealth Office,1143563,"44,644.40",
Crown Prosecution Service ,04/05/22,Overseas Residential accommodation,Intl External Funding,Foreign And Commonwealth Office,1143563,"7,543.50",
Crown Prosecution Service ,04/05/22,FCO platform charges excluding leases,Intl Liaison Prosecutors,Foreign And Commonwealth Office,1143563,"10,815.33",
Crown Prosecution Service ,04/05/22,Overseas Residential accommodation,Intl External Funding,Foreign And Commonwealth Office,1143563,"4,600.00",
Crown Prosecution Service ,04/05/22,Overseas Residential accommodation,Intl Liaison Prosecutors,Foreign And Commonwealth Office,1143563,"4,934.75",
Crown Prosecution Service ,04/05/22,FCO platform charges excluding leases,Intl External Funding,Foreign And Commonwealth Office,1143563,"5,125.00",
Crown Prosecution Service ,04/05/22,FCO platform charges excluding leases,Intl Liaison Prosecutors,Foreign And Commonwealth Office,1143563,"17,842.40",
Crown Prosecution Service ,04/05/22,FCO platform charges excluding leases,Intl External Funding,Foreign And Commonwealth Office,1143563,"9,100.00",
Crown Prosecution Service ,04/05/22,FCO platform charges excluding leases,Intl External Funding,Foreign And Commonwealth Office,1143563,"5,625.00",
Crown Prosecution Service ,04/05/22,Overseas Residential accommodation,Intl External Funding,Foreign And Commonwealth Office,1143563,"11,325.00",
Crown Prosecution Service ,04/05/22,FCO platform charges excluding leases,Intl External Funding,Foreign And Commonwealth Office,1143563,"9,750.00",
Crown Prosecution Service ,04/05/22,FCO platform charges excluding leases,Intl Liaison Prosecutors,Foreign And Commonwealth Office,1143563,969.00,
Crown Prosecution Service ,04/05/22,Overseas Residential accommodation,Intl External Funding,Foreign And Commonwealth Office,1143563,"4,890.75",
Crown Prosecution Service ,04/05/22,FCO platform charges excluding leases,Intl Liaison Prosecutors,Foreign And Commonwealth Office,1143563,"6,000.00",
Crown Prosecution Service ,04/05/22,FCO platform charges excluding leases,Intl External Funding,Foreign And Commonwealth Office,1143563,"6,888.50",
Crown Prosecution Service ,04/05/22,Overseas Residential accommodation,Intl External Funding,Foreign And Commonwealth Office,1143563,"7,125.00",
Crown Prosecution Service ,04/05/22,Overseas Residential accommodation,Intl Liaison Prosecutors,Foreign And Commonwealth Office,1143563,"6,700.00",
Crown Prosecution Service ,04/05/22,FCO platform charges excluding leases,Intl Liaison Prosecutors,Foreign And Commonwealth Office,1143563,"10,286.50",
Crown Prosecution Service ,04/05/22,FCO platform charges excluding leases,Intl External Funding,Foreign And Commonwealth Office,1143563,"10,350.00",
Crown Prosecution Service ,04/05/22,FCO platform charges excluding leases,Intl Liaison Prosecutors,Foreign And Commonwealth Office,1143563,"14,400.00",
Crown Prosecution Service ,04/05/22,FCO platform charges excluding leases,Intl External Funding,Foreign And Commonwealth Office,1143563,"16,400.00",
Crown Prosecution Service ,04/05/22,FCO platform charges excluding leases,Intl Liaison Prosecutors,Foreign And Commonwealth Office,1143563,130.50,
Crown Prosecution Service ,04/05/22,FCO platform charges excluding leases,Intl External Funding,Foreign And Commonwealth Office,1143563,"9,200.00",
Crown Prosecution Service ,04/05/22,Overseas Residential accommodation,Intl Liaison Prosecutors,Foreign And Commonwealth Office,1143563,"9,575.00",
Crown Prosecution Service ,04/05/22,FCO platform charges excluding leases,Intl Liaison Prosecutors,Foreign And Commonwealth Office,1143563,"20,246.50",
Crown Prosecution Service ,04/05/22,Overseas Residential accommodation,Intl External Funding,Foreign And Commonwealth Office,1143563,"9,808.00",
Crown Prosecution Service ,04/05/22,FCO platform charges excluding leases,Intl Liaison Prosecutors,Foreign And Commonwealth Office,1143563,"11,775.00",
Crown Prosecution Service ,04/05/22,Overseas Residential accommodation,Intl External Funding,Foreign And Commonwealth Office,1143563,"4,800.00",
Crown Prosecution Service ,04/05/22,Recoverable VAT control,Balance Sheet,Lumen Technologies UK Ltd,284112205/1076026,"25,366.45",Y
Crown Prosecution Service ,04/05/22,IT services,PSN Connectivity Contract,Lumen Technologies UK Ltd,284112205/1076026,"126,832.28",
Crown Prosecution Service ,04/05/22,Recruitment general costs,PF Resourcing,Cabinet Office RM Shared Services,3817948,71.40,Y
Crown Prosecution Service ,04/05/22,Recruitment general costs,Operational HR Costs,Cabinet Office RM Shared Services,3817948,"32,499.60",Y
Crown Prosecution Service ,04/05/22,Crown Court Graduated Fee Scheme,Mersey Cheshire Complex Casework Unit,Exchange Chambers - Liverpool,588841 - NEC CLAIM 3,"38,816.82",Y
Crown Prosecution Service ,04/05/22,Crown Court Graduated Fee Scheme,Mersey Cheshire Complex Casework Unit,Exchange Chambers - Liverpool,588841 -NED CLAIM 4,"58,585.92",Y
Crown Prosecution Service ,04/05/22,Apprenticeship Levy payments Permanent,Other Corporate Admin Payments,HM Revenue and Customs,948PB000021422301,"7,151.64",
Crown Prosecution Service ,04/05/22,Apprenticeship Levy payments Permanent,Other Corporate Programme Payments,HM Revenue and Customs,948PB000021422301,"112,042.36",
Crown Prosecution Service ,04/05/22,National Insurance payable,Balance Sheet,HM Revenue and Customs,948PB000021422301,"4,869,589.85",
Crown Prosecution Service ,04/05/22,PAYE payable,Balance Sheet,HM Revenue and Customs,948PB000021422301,"3,603,945.53",
Crown Prosecution Service ,04/05/22,IT services,Apps and Hosting Contract,CGI IT UK Ltd,GB014079795,"49,137.95",
Crown Prosecution Service ,04/05/22,Recoverable VAT control,Balance Sheet,CGI IT UK Ltd,GB014079795,"9,827.59",Y
Crown Prosecution Service ,04/05/22,Recoverable VAT control,Balance Sheet,FlyForm LTD Cardiff,INV-10701,"4,379.21",Y
Crown Prosecution Service ,04/05/22,IT services,DTS Programme Project Cost,FlyForm LTD Cardiff,INV-10701,"21,895.99",
Crown Prosecution Service ,04/05/22,IT services,DTS Programme Project Cost,FlyForm LTD Cardiff,INV-10708,"36,626.40",Y
Crown Prosecution Service ,05/05/22,IT non capital software licences,Other Corporate Programme Payments,Anaplan Ltd Maidenhead,10034645,"277,704.00",Y
Crown Prosecution Service ,05/05/22,Crown Court Graduated Fee Scheme,East of England Complex Casework Unit,2 Hare Court Chambers -Chambers of Orlando Pownall,114730,"34,489.20",Y
Crown Prosecution Service ,06/05/22,Landlord service charge,Estate and FM: Programme,Government Property Agency London,00000001/15120,"36,626.40",Y
Crown Prosecution Service ,06/05/22,National non domestic rates,Estate and FM: Programme,Government Property Agency London,00000001/15120,"43,645.00",
Crown Prosecution Service ,06/05/22,Landlord service charge,Estate and FM: Programme,Government Property Agency London,00000001/15121,"1,118.40",Y
Crown Prosecution Service ,06/05/22,National non domestic rates,Estate and FM: Programme,Government Property Agency London,00000001/15121,"132,542.00",
Crown Prosecution Service ,06/05/22,Landlord service charge,Estate and FM: Programme,Government Property Agency London,00000001/15125,"12,351.20",Y
Crown Prosecution Service ,06/05/22,National non domestic rates,Estate and FM: Programme,Government Property Agency London,00000001/15125,"17,770.00",
Crown Prosecution Service ,06/05/22,Landlord service charge,Estate and FM: Programme,Government Property Agency London,00000001/15128,"41,005.40",Y
Crown Prosecution Service ,06/05/22,National non domestic rates,Estate and FM: Programme,Government Property Agency London,00000001/15128,"18,887.00",
Crown Prosecution Service ,06/05/22,Landlord service charge,Estate and FM: Programme,Government Property Agency London,00000001/15136,"18,740.00",
Crown Prosecution Service ,06/05/22,National non domestic rates,Estate and FM: Programme,Government Property Agency London,00000001/15136,"25,995.00",
Crown Prosecution Service ,06/05/22,National non domestic rates,Estate and FM: Programme,Government Property Agency London,00000001/15137,"3,434.00",
Crown Prosecution Service ,06/05/22,Landlord service charge,Estate and FM: Programme,Government Property Agency London,00000001/15137,"22,750.20",Y
Crown Prosecution Service ,06/05/22,Landlord service charge,Estate and FM: Programme,Government Property Agency London,00000001/15143,"102,819.20",Y
Crown Prosecution Service ,06/05/22,National non domestic rates,Estate and FM: Programme,Government Property Agency London,00000001/15143,"10,027.00",
Crown Prosecution Service ,06/05/22,National non domestic rates,Estate and FM: Programme,Government Property Agency London,00000001/15145,"6,343.00",
Crown Prosecution Service ,06/05/22,Landlord service charge,Estate and FM: Programme,Government Property Agency London,00000001/15145,"19,282.00",
Crown Prosecution Service ,06/05/22,Landlord service charge,Estate and FM: Programme,Government Property Agency London,00000001/15150,"76,957.90",Y
Crown Prosecution Service ,06/05/22,National non domestic rates,Estate and FM: Programme,Government Property Agency London,00000001/15150,"11,676.00",
Crown Prosecution Service ,06/05/22,National non domestic rates,Estate and FM: Administration,Government Property Agency London,00000001/15150,"11,676.00",
Crown Prosecution Service ,06/05/22,Landlord service charge,Estate and FM: Administration,Government Property Agency London,00000001/15150,"76,957.90",Y
Crown Prosecution Service ,06/05/22,National non domestic rates,Estate and FM: Programme,Government Property Agency London,00000001/15157,"23,971.00",
Crown Prosecution Service ,06/05/22,Landlord service charge,Estate and FM: Programme,Government Property Agency London,00000001/15157,"11,086.00",
Crown Prosecution Service ,06/05/22,Landlord service charge,Estate and FM: Programme,Government Property Agency London,00000001/15158,"14,325.60",Y
Crown Prosecution Service ,06/05/22,National non domestic rates,Estate and FM: Programme,Government Property Agency London,00000001/15158,"44,693.00",
Crown Prosecution Service ,06/05/22,Landlord service charge,Estate and FM: Programme,Government Property Agency London,00000001/15159,"69,016.40",Y
Crown Prosecution Service ,06/05/22,Landlord service charge,Estate and FM: Programme,Government Property Agency London,00000001/15161,"17,761.80",Y
Crown Prosecution Service ,06/05/22,National non domestic rates,Estate and FM: Programme,Government Property Agency London,00000001/15161,"25,423.00",
Crown Prosecution Service ,06/05/22,Landlord service charge,Estate and FM: Programme,Government Property Agency London,00000001/15169,"77,264.40",Y
Crown Prosecution Service ,06/05/22,Landlord service charge,Estate and FM: Programme,Government Property Agency London,00000001/15172,"45,805.20",Y
Crown Prosecution Service ,06/05/22,Landlord service charge,Estate and FM: Programme,Government Property Agency London,00000001/15174,"45,898.80",Y
Crown Prosecution Service ,06/05/22,Landlord service charge,Estate and FM: Programme,Government Property Agency London,00000001/15190,"30,505.20",Y
Crown Prosecution Service ,06/05/22,Landlord service charge,Estate and FM: Programme,Government Property Agency London,00000001/15191,"160,477.20",Y
Crown Prosecution Service ,06/05/22,Landlord service charge,Estate and FM: Programme,Government Property Agency London,00000001/15193,"33,391.20",Y
Crown Prosecution Service ,06/05/22,Landlord service charge,Estate and FM: Programme,Government Property Agency London,00000001/15195,"94,814.40",Y
Crown Prosecution Service ,06/05/22,Landlord service charge,Estate and FM: Programme,Government Property Agency London,00000001/15197,"59,239.20",Y
Crown Prosecution Service ,06/05/22,Landlord service charge,Estate and FM: Programme,Government Property Agency London,00000001/15198,"45,606.00",Y
Crown Prosecution Service ,06/05/22,Landlord service charge,Estate and FM: Programme,Government Property Agency London,00000001/15279,"96,958.60",Y
Crown Prosecution Service ,06/05/22,National non domestic rates,Estate and FM: Programme,Government Property Agency London,00000001/15279,"38,631.00",
Crown Prosecution Service ,06/05/22,National non domestic rates,Estate and FM: Programme,Government Property Agency London,00000001/16528,"17,408.00",
Crown Prosecution Service ,06/05/22,Landlord service charge,Estate and FM: Programme,Government Property Agency London,00000001/16528,"17,516.34",
Crown Prosecution Service ,06/05/22,National non domestic rates,Estate and FM: Programme,Government Property Agency London,00000001/16609,"58,910.46",
Crown Prosecution Service ,06/05/22,Landlord service charge,Estate and FM: Programme,Government Property Agency London,00000001/16609,"44,189.59",
Crown Prosecution Service ,06/05/22,National non domestic rates,Estate and FM: Programme,Government Property Agency London,00000001/16643,"62,618.88",
Crown Prosecution Service ,06/05/22,Landlord service charge,Estate and FM: Programme,Government Property Agency London,00000001/16643,"102,906.72",
Crown Prosecution Service ,06/05/22,Landlord service charge,Estate and FM: Administration,Government Property Agency London,00000001/17333,"126,944.40",Y
Crown Prosecution Service ,06/05/22,Landlord service charge,Estate and FM: Programme,Government Property Agency London,00000001/17338,"68,612.40",Y
Crown Prosecution Service ,06/05/22,Landlord service charge,Estate and FM: Programme,Government Property Agency London,00000001/17342,"59,042.40",Y
Crown Prosecution Service ,06/05/22,Crown Court Graduated Fee Scheme,South West Crown Court: North,Guildhall Chambers Bristol,193192AL,"30,354.90",Y
Crown Prosecution Service ,06/05/22,Crown Court Graduated Fee Scheme,West Midlands RASSO Unit,2 Kings Bench Walk London,288781-GO,"28,117.80",Y
Crown Prosecution Service ,06/05/22,Crown Court Graduated Fee Scheme,London North Complex Casework Unit,5 King's Bench Walk,DRQC176496,"27,177.00",Y
Crown Prosecution Service ,09/05/22,Crown Court Graduated Fee Scheme,South West Crown Court: North,Albion Chambers,200237 KB Boboc,"31,713.84",Y
Crown Prosecution Service ,09/05/22,IT services,End User Computing Contract,WIPRO Holdings London,5700000057,"31,876.50",
Crown Prosecution Service ,09/05/22,Recoverable VAT control,Balance Sheet,WIPRO Holdings London,5700000057,"6,375.30",Y
Crown Prosecution Service ,10/05/22,Crown Court Graduated Fee Scheme,London North Complex Casework Unit,2 Hare Court Chambers -Chambers of Orlando Pownall,116713.,"52,037.40",Y
Crown Prosecution Service ,10/05/22,Crown Court Graduated Fee Scheme,London South Crown Court Unit,Nine Bedford Row (9 Bedford Row),139702kc2,"25,468.50",Y
Crown Prosecution Service ,10/05/22,Crown Court Very High Cost Cases Full Scheme,RWD North Unit,Foundry Chambers (9-12 Bell Yard),196004/JWA,"30,256.32",Y
Crown Prosecution Service ,11/05/22,Landlord service charge,Estate and FM: Programme,Government Property Agency London,00000001/14073SUPP,"30,242.33",
Crown Prosecution Service ,11/05/22,Landlord service charge,Estate and FM: Programme,Government Property Agency London,00000001/16560,"5,957.64",
Crown Prosecution Service ,11/05/22,National non domestic rates,Estate and FM: Programme,Government Property Agency London,00000001/16560,"20,480.00",
Crown Prosecution Service ,11/05/22,Landlord service charge,Estate and FM: Programme,Government Property Agency London,00000001/16637,"53,439.85",Y
Crown Prosecution Service ,11/05/22,National non domestic rates,Estate and FM: Programme,Government Property Agency London,00000001/16637,"22,986.00",
Crown Prosecution Service ,11/05/22,Property management fees,Estate and FM: Programme,Government Property Agency London,00000001/17203,"37,362.48",Y
Crown Prosecution Service ,11/05/22,Lease liability non current lease payments,Balance Sheet,Government Property Agency London,00000001/17904,"28,800.00",
Crown Prosecution Service ,11/05/22,Landlord service charge,Estate and FM: Programme,Government Property Agency London,00000001/17907,"38,333.55",Y
Crown Prosecution Service ,11/05/22,National non domestic rates,Estate and FM: Programme,Government Property Agency London,00000001/17907,"22,986.00",
Crown Prosecution Service ,11/05/22,Crown Court Graduated Fee Scheme,London North Complex Casework Unit,6 Kings Bench Walk- Chambers of D Fisher & D Perry,102913 LM,"33,739.80",Y
Crown Prosecution Service ,11/05/22,Crown Court Graduated Fee Scheme,London North Crown Court Unit,Red Lion Chambers (18 RLC),158069LKtrial5/10/21,"47,908.80",Y
Crown Prosecution Service ,11/05/22,Crown Court Graduated Fee Scheme,London South RASSO,5 St Andrew's Hill,177442-1/CM,"39,030.60",Y
Crown Prosecution Service ,11/05/22,IT services,Other IT costs,Lumen Technologies UK Ltd,292107519/1084100,"45,600.97",Y
Crown Prosecution Service ,11/05/22,Recoverable VAT control,Balance Sheet,Lumen Technologies UK Ltd,292109940/1087515,"23,527.96",Y
Crown Prosecution Service ,11/05/22,IT services,PSN Services Contract,Lumen Technologies UK Ltd,292109940/1087515,"117,639.82",
Crown Prosecution Service ,12/05/22,Crown Court Graduated Fee Scheme,West Midlands Complex Casework Unit,Nine Bedford Row (9 Bedford Row),129885/PG. Jo Fox,"45,688.63",Y
Crown Prosecution Service ,12/05/22,UK National rail travel,Operational Business Support,Clarity Travel Management,CPSHQ0317,"1,325.30",
Crown Prosecution Service ,12/05/22,UK National rail travel,PF HR Business Partnering,Clarity Travel Management,CPSHQ0317,207.80,
Crown Prosecution Service ,12/05/22,UK National rail travel,PF Resourcing,Clarity Travel Management,CPSHQ0317,66.20,
Crown Prosecution Service ,12/05/22,UK National rail travel,Compliance and Assurance,Clarity Travel Management,CPSHQ0317,"2,478.40",
Crown Prosecution Service ,12/05/22,UK National rail travel,Corporate Communication,Clarity Travel Management,CPSHQ0317,508.20,
Crown Prosecution Service ,12/05/22,UK National rail travel,Private Office,Clarity Travel Management,CPSHQ0317,486.70,
Crown Prosecution Service ,12/05/22,UK National rail travel,Central Operational Training,Clarity Travel Management,CPSHQ0317,"1,144.70",
Crown Prosecution Service ,12/05/22,UK National rail travel,Legal Trainee Salaries,Clarity Travel Management,CPSHQ0317,378.60,
Crown Prosecution Service ,12/05/22,UK National rail travel,Court Business Unit,Clarity Travel Management,CPSHQ0317,470.90,
Crown Prosecution Service ,12/05/22,UK National rail travel,DID DTS Change,Clarity Travel Management,CPSHQ0317,"3,474.90",
Crown Prosecution Service ,12/05/22,UK National rail travel,DID Security and Information,Clarity Travel Management,CPSHQ0317,"2,291.80",
Crown Prosecution Service ,12/05/22,UK National rail travel,PF Analytics and Workforce Plan,Clarity Travel Management,CPSHQ0317,"1,015.80",
Crown Prosecution Service ,12/05/22,UK National rail travel,CFO Finance Operations,Clarity Travel Management,CPSHQ0317,74.00,
Crown Prosecution Service ,12/05/22,UK National rail travel,PF People and Business Change,Clarity Travel Management,CPSHQ0317,"2,763.00",
Crown Prosecution Service ,12/05/22,UK National rail travel,PF HR Operations,Clarity Travel Management,CPSHQ0317,231.40,
Crown Prosecution Service ,12/05/22,UK National rail travel,Permanent Transfer Costs,Clarity Travel Management,CPSHQ0317,566.60,
Crown Prosecution Service ,12/05/22,UK Hotels,PF Resourcing,Clarity Travel Management,CPSHQ0317,189.00,Y
Crown Prosecution Service ,12/05/22,UK Hotels,Court Business Unit,Clarity Travel Management,CPSHQ0317,349.24,Y
Crown Prosecution Service ,12/05/22,UK Hotels,Central Legal Training Team,Clarity Travel Management,CPSHQ0317,348.00,Y
Crown Prosecution Service ,12/05/22,UK Hotels,Operational Change,Clarity Travel Management,CPSHQ0317,799.86,Y
Crown Prosecution Service ,12/05/22,UK Hotels,PF HR Systems and Information,Clarity Travel Management,CPSHQ0317,477.40,Y
Crown Prosecution Service ,12/05/22,UK Hotels,Private Office,Clarity Travel Management,CPSHQ0317,423.00,Y
Crown Prosecution Service ,12/05/22,UK National rail travel,CFO Commercial,Clarity Travel Management,CPSHQ0317,524.40,Y
Crown Prosecution Service ,12/05/22,UK Hotels,PF People and Business Change,Clarity Travel Management,CPSHQ0317,485.01,Y
Crown Prosecution Service ,12/05/22,UK Hotels,PF Operational HR Costs,Clarity Travel Management,CPSHQ0317,176.00,Y
Crown Prosecution Service ,12/05/22,UK Hotels,Permanent Transfer Costs,Clarity Travel Management,CPSHQ0317,659.00,Y
Crown Prosecution Service ,12/05/22,UK Hotels,DID DTS Change,Clarity Travel Management,CPSHQ0317,734.90,Y
Crown Prosecution Service ,12/05/22,UK Hotels,PF HR Business Partnering,Clarity Travel Management,CPSHQ0317,133.00,Y
Crown Prosecution Service ,12/05/22,UK Hotels,PF Learning and Development General,Clarity Travel Management,CPSHQ0317,149.00,Y
Crown Prosecution Service ,12/05/22,UK Hotels,PF Analytics and Workforce Plan,Clarity Travel Management,CPSHQ0317,400.50,Y
Crown Prosecution Service ,12/05/22,UK Hotels,Operational Performance,Clarity Travel Management,CPSHQ0317,445.01,Y
Crown Prosecution Service ,12/05/22,UK National rail travel,PF HR Business Management,Clarity Travel Management,CPSHQ0317,274.30,
Crown Prosecution Service ,12/05/22,UK National rail travel,Central Legal Training Team,Clarity Travel Management,CPSHQ0317,"1,493.90",
Crown Prosecution Service ,12/05/22,UK National rail travel,Strategy and Policy,Clarity Travel Management,CPSHQ0317,123.80,
Crown Prosecution Service ,12/05/22,UK National rail travel,PF HR Systems and Information,Clarity Travel Management,CPSHQ0317,146.20,
Crown Prosecution Service ,12/05/22,UK National rail travel,Operational Change,Clarity Travel Management,CPSHQ0317,"1,384.90",
Crown Prosecution Service ,12/05/22,UK National rail travel,DID DTS Technology,Clarity Travel Management,CPSHQ0317,"2,508.70",
Crown Prosecution Service ,12/05/22,UK National rail travel,PF Learning and Development General,Clarity Travel Management,CPSHQ0317,510.20,
Crown Prosecution Service ,12/05/22,UK National rail travel,DID Central Leadership Team,Clarity Travel Management,CPSHQ0317,"1,055.70",
Crown Prosecution Service ,12/05/22,UK National rail travel,DID Operational Process,Clarity Travel Management,CPSHQ0317,489.10,
Crown Prosecution Service ,12/05/22,UK National rail travel,Director of Legal Services,Clarity Travel Management,CPSHQ0317,197.30,
Crown Prosecution Service ,12/05/22,UK National rail travel,CFO Estates,Clarity Travel Management,CPSHQ0317,438.10,
Crown Prosecution Service ,12/05/22,UK National rail travel,Operational Performance,Clarity Travel Management,CPSHQ0317,210.80,
Crown Prosecution Service ,12/05/22,UK Hotels,CFO Commercial,Clarity Travel Management,CPSHQ0317,"1,972.80",
Crown Prosecution Service ,12/05/22,UK National rail travel,CFO Fin System Change and Costings,Clarity Travel Management,CPSHQ0318,173.95,
Crown Prosecution Service ,12/05/22,UK National rail travel,DID Security and Information,Clarity Travel Management,CPSHQ0318,532.60,
Crown Prosecution Service ,12/05/22,UK National rail travel,PF HR Systems and Information,Clarity Travel Management,CPSHQ0318,408.80,
Crown Prosecution Service ,12/05/22,UK National rail travel,CFO Commercial,Clarity Travel Management,CPSHQ0318,"1,305.00",
Crown Prosecution Service ,12/05/22,UK National rail travel,Court Business Unit,Clarity Travel Management,CPSHQ0318,905.40,
Crown Prosecution Service ,12/05/22,UK National rail travel,DID DTS Technology,Clarity Travel Management,CPSHQ0318,83.60,
Crown Prosecution Service ,12/05/22,UK National rail travel,Strategy and Policy,Clarity Travel Management,CPSHQ0318,350.00,
Crown Prosecution Service ,12/05/22,UK National rail travel,PF HR Operations,Clarity Travel Management,CPSHQ0318,983.80,
Crown Prosecution Service ,12/05/22,UK National rail travel,PF HR Business Partnering,Clarity Travel Management,CPSHQ0318,426.40,
Crown Prosecution Service ,12/05/22,UK National rail travel,Compliance and Assurance,Clarity Travel Management,CPSHQ0318,"2,482.10",
Crown Prosecution Service ,12/05/22,UK National rail travel,DID DTS Change,Clarity Travel Management,CPSHQ0318,"1,731.40",
Crown Prosecution Service ,12/05/22,UK National rail travel,Corporate Communication,Clarity Travel Management,CPSHQ0318,73.50,
Crown Prosecution Service ,12/05/22,UK National rail travel,Legal Trainee Salaries,Clarity Travel Management,CPSHQ0318,64.00,
Crown Prosecution Service ,12/05/22,UK National rail travel,Operational Change,Clarity Travel Management,CPSHQ0318,"1,508.60",
Crown Prosecution Service ,12/05/22,UK Hotels,PF Resourcing,Clarity Travel Management,CPSHQ0318,75.00,Y
Crown Prosecution Service ,12/05/22,UK Hotels,Operational Performance,Clarity Travel Management,CPSHQ0318,188.00,Y
Crown Prosecution Service ,12/05/22,UK Hotels,Court Business Unit,Clarity Travel Management,CPSHQ0318,279.00,Y
Crown Prosecution Service ,12/05/22,UK Hotels,Central Legal Training Team,Clarity Travel Management,CPSHQ0318,414.02,Y
Crown Prosecution Service ,12/05/22,UK Hotels,PF Learning and Development General,Clarity Travel Management,CPSHQ0318,514.02,Y
Crown Prosecution Service ,12/05/22,UK Hotels,PF HR Operations,Clarity Travel Management,CPSHQ0318,67.00,Y
Crown Prosecution Service ,12/05/22,UK Hotels,Private Office,Clarity Travel Management,CPSHQ0318,204.02,Y
Crown Prosecution Service ,12/05/22,UK Hotels,CFO Commercial,Clarity Travel Management,CPSHQ0318,78.00,Y
Crown Prosecution Service ,12/05/22,UK Hotels,Permanent Transfer Costs,Clarity Travel Management,CPSHQ0318,810.49,Y
Crown Prosecution Service ,12/05/22,UK Hotels,Central Operational Training,Clarity Travel Management,CPSHQ0318,419.00,Y
Crown Prosecution Service ,12/05/22,UK Hotels,Operational Business Support,Clarity Travel Management,CPSHQ0318,306.00,Y
Crown Prosecution Service ,12/05/22,UK Hotels,Operational Change,Clarity Travel Management,CPSHQ0318,"1,116.50",Y
Crown Prosecution Service ,12/05/22,UK Hotels,DID DTS Change,Clarity Travel Management,CPSHQ0318,815.05,Y
Crown Prosecution Service ,12/05/22,UK Hotels,PF HR Business Partnering,Clarity Travel Management,CPSHQ0318,211.00,Y
Crown Prosecution Service ,12/05/22,UK Hotels,DID DTS Technology,Clarity Travel Management,CPSHQ0318,925.12,Y
Crown Prosecution Service ,12/05/22,UK Hotels,DTUS,Clarity Travel Management,CPSHQ0318,58.79,Y
Crown Prosecution Service ,12/05/22,UK National rail travel,PF National Black Crown Prosecutors Association,Clarity Travel Management,CPSHQ0318,64.60,
Crown Prosecution Service ,12/05/22,UK National rail travel,Press Office,Clarity Travel Management,CPSHQ0318,126.50,
Crown Prosecution Service ,12/05/22,UK National rail travel,PF Litigation,Clarity Travel Management,CPSHQ0318,49.10,
Crown Prosecution Service ,12/05/22,UK National rail travel,Director of Legal Services,Clarity Travel Management,CPSHQ0318,227.40,
Crown Prosecution Service ,12/05/22,UK National rail travel,Operational Business Support,Clarity Travel Management,CPSHQ0318,"1,091.40",
Crown Prosecution Service ,12/05/22,UK National rail travel,Central Operational Training,Clarity Travel Management,CPSHQ0318,"1,353.10",
Crown Prosecution Service ,12/05/22,UK National rail travel,PF Learning and Development General,Clarity Travel Management,CPSHQ0318,216.20,
Crown Prosecution Service ,12/05/22,UK National rail travel,Permanent Transfer Costs,Clarity Travel Management,CPSHQ0318,46.80,
Crown Prosecution Service ,12/05/22,UK National rail travel,PF People and Business Change,Clarity Travel Management,CPSHQ0318,889.50,
Crown Prosecution Service ,12/05/22,UK National rail travel,PF Resourcing,Clarity Travel Management,CPSHQ0318,"2,511.00",
Crown Prosecution Service ,12/05/22,UK National rail travel,Operational Performance,Clarity Travel Management,CPSHQ0318,357.90,
Crown Prosecution Service ,12/05/22,UK National rail travel,PF HR Business Management,Clarity Travel Management,CPSHQ0318,23.20,
Crown Prosecution Service ,12/05/22,UK National rail travel,DID Operational Process,Clarity Travel Management,CPSHQ0318,513.40,
Crown Prosecution Service ,12/05/22,UK National rail travel,Civil Recovery Team,Clarity Travel Management,CPSHQ0318,83.40,
Crown Prosecution Service ,12/05/22,UK National rail travel,Central Legal Training Team,Clarity Travel Management,CPSHQ0318,"1,677.40",
Crown Prosecution Service ,12/05/22,UK National rail travel,PF Analytics and Workforce Plan,Clarity Travel Management,CPSHQ0318,75.90,
Crown Prosecution Service ,12/05/22,UK National rail travel,DTUS,Clarity Travel Management,CPSHQ0318,79.00,
Crown Prosecution Service ,12/05/22,UK National rail travel,Private Office,Clarity Travel Management,CPSHQ0318,497.10,
Crown Prosecution Service ,12/05/22,UK National rail travel,CFO Strategic Financial Planning,Clarity Travel Management,CPSHQ0318,156.40,
Crown Prosecution Service ,13/05/22,Crown Court Very High Cost Cases Full Scheme,Wessex Crown Court Unit,Pump Court Chambers - 3 Pump Court,267174-MR,"63,945.00",Y
Crown Prosecution Service ,13/05/22,Crown Court Graduated Fee Scheme,East Midlands Crown Court Section,1 High Pavement Chambers,275926 Graham PLJ,"27,412.20",Y
Crown Prosecution Service ,13/05/22,Crown Court Graduated Fee Scheme,East of England Complex Casework Unit,6 Kings Bench Walk- Chambers of D Fisher & D Perry,99817 KW,"32,401.32",Y
Crown Prosecution Service ,13/05/22,Recoverable VAT control,Balance Sheet,Ernst & Young LLP London,GB01G000299677,"8,000.00",Y
Crown Prosecution Service ,13/05/22,External Training,CPS Direct Management Team,Ernst & Young LLP London,GB01G000299677,"9,490.00",
Crown Prosecution Service ,13/05/22,External Training,CPS Direct Out of Hours Prosecutors,Ernst & Young LLP London,GB01G000299677,"15,000.00",
Crown Prosecution Service ,13/05/22,Individual Learning Accounts,CPS Direct Management Team,Ernst & Young LLP London,GB01G000299677,510.00,
Crown Prosecution Service ,13/05/22,External Training,CPS Direct Business Centre,Ernst & Young LLP London,GB01G000299677,"15,000.00",
Crown Prosecution Service ,16/05/22,General Management Consultancy Advice,DTS Programme Project Cost,PA Consulting Services Limited,0000016453,"124,026.00",Y
Crown Prosecution Service ,16/05/22,Crown Court Graduated Fee Scheme,London South Crown Court Unit,Red Lion Chambers (18 RLC),164056JBN,"46,377.00",Y
Crown Prosecution Service ,16/05/22,Crown Court Graduated Fee Scheme,East Midlands RASSO Unit,Seven Bedford Row,191283 - vjm1,"26,595.00",Y
Crown Prosecution Service ,16/05/22,Crown Court Graduated Fee Scheme,East Midlands Crown Court Section,36 Bedford Row,204648 JEC Trial,"29,307.06",Y
Crown Prosecution Service ,16/05/22,Recoverable VAT control,Balance Sheet,Lumen Technologies UK Ltd,288106941/1079584,"22,467.84",Y
Crown Prosecution Service ,16/05/22,IT services,PSN Connectivity Contract,Lumen Technologies UK Ltd,288106941/1079584,"112,339.21",
Crown Prosecution Service ,16/05/22,Crown Court Graduated Fee Scheme,South East Complex Casework Unit,2 Bedford Row Chambers,AC 191761 3,"37,173.72",Y
Crown Prosecution Service ,16/05/22,IT services,Apps and Hosting Contract,CGI IT UK Ltd,GB014081468,"578,116.40",
Crown Prosecution Service ,16/05/22,Recoverable VAT control,Balance Sheet,CGI IT UK Ltd,GB014081468,"115,623.28",Y
Crown Prosecution Service ,16/05/22,Recoverable VAT control,Balance Sheet,CGI IT UK Ltd,GB014081478,"20,622.68",Y
Crown Prosecution Service ,16/05/22,IT services,Service Desk Contract,CGI IT UK Ltd,GB014081478,"103,113.38",
Crown Prosecution Service ,16/05/22,Recoverable VAT control,Balance Sheet,CGI IT UK Ltd,GB014081716,"63,007.10",Y
Crown Prosecution Service ,16/05/22,IT services,Apps and Hosting Contract,CGI IT UK Ltd,GB014081716,"315,035.49",
Crown Prosecution Service ,16/05/22,IT services,DTS Programme Project Cost,ICS.AI Ltd Basingstoke,INV-607,"37,442.40",Y
Crown Prosecution Service ,16/05/22,IT services,DTS Programme Project Cost,eSynergy Solutions Ltd,INV00000560,"31,980.00",Y
Crown Prosecution Service ,16/05/22,IT services,DTS Programme Project Cost,eSynergy Solutions Ltd,INV00000567,"64,440.00",Y
Crown Prosecution Service ,16/05/22,IT services,DTS Programme Project Cost,eSynergy Solutions Ltd,INV00000589,"168,312.12",Y
Crown Prosecution Service ,16/05/22,IT non capital software licences,Legal Reference and ICT Licenses,Specialist Computer Centres Plc,OP/N156428,"514,448.51",Y
Crown Prosecution Service ,16/05/22,IT non capital equipment and consumables,DTS Programme Project Cost,CDW Limited London,PSINV03532584,"53,136.13",Y
Crown Prosecution Service ,17/05/22,Recoverable VAT control,Balance Sheet,Government Property Agency London,00000001/18166,"5,444.01",Y
Crown Prosecution Service ,17/05/22,Reactive Maintenance,Estate and FM: Programme,Government Property Agency London,00000001/18166,"27,092.53",
Crown Prosecution Service ,17/05/22,Reactive Maintenance,Estate and FM: Administration,Government Property Agency London,00000001/18166,127.52,
Crown Prosecution Service ,17/05/22,Crown Court Graduated Fee Scheme,RWD North Unit,36 Bedford Row,214359 JAB & Others,"37,711.09",Y
Crown Prosecution Service ,17/05/22,Crown Court Very High Cost Cases Full Scheme,Cymru Wales Complex Casework Unit,Apex Chambers,45880-3/RR,"25,060.00",Y
Crown Prosecution Service ,18/05/22,Crown Court Graduated Fee Scheme,RWD North Unit,23 Essex Street Chambers,195880-TC,"71,110.38",Y
Crown Prosecution Service ,18/05/22,Crown Court Very High Cost Cases Full Scheme,Yorkshire and Humberside Complex Casework Unit,Park Square Barristers (No 6 and Sovereign merged),397404/KMQC/ST10,"25,542.00",Y
Crown Prosecution Service ,18/05/22,Recoverable VAT control,Balance Sheet,Oracle Corporation UK Ltd,460026032,"18,640.35",Y
Crown Prosecution Service ,18/05/22,IT non capital software licences,Legal Reference and ICT Licenses,Oracle Corporation UK Ltd,460026032,"93,201.77",
Crown Prosecution Service ,18/05/22,External legal advice - HR casework,PF Litigation,Government Legal Department,510822,"25,781.76",Y
Crown Prosecution Service ,18/05/22,Crown Court Graduated Fee Scheme,West Midlands Complex Casework Unit,No 5 Fountain Court Chambers,804654/DBM/TASH,"107,385.84",Y
Crown Prosecution Service ,18/05/22,Recoverable VAT control,Balance Sheet,DX Network Services Ltd,83478734,"10,702.31",Y
Crown Prosecution Service ,18/05/22,Courier Services,Wessex Area Business Centre,DX Network Services Ltd,83478734,"2,981.53",
Crown Prosecution Service ,18/05/22,Courier Services,East Midlands Area Business Centre,DX Network Services Ltd,83478734,"5,709.67",
Crown Prosecution Service ,18/05/22,Courier Services,Thames and Chiltern Area Business Centre,DX Network Services Ltd,83478734,"2,109.20",
Crown Prosecution Service ,18/05/22,Courier Services,East of England Area Business Centre,DX Network Services Ltd,83478734,"1,313.36",
Crown Prosecution Service ,18/05/22,Courier Services,Estate and FM: Administration,DX Network Services Ltd,83478734,"3,353.63",
Crown Prosecution Service ,18/05/22,Courier Services,Estate and FM: Programme,DX Network Services Ltd,83478734,"14,509.14",
Crown Prosecution Service ,18/05/22,Courier Services,South East Business Centre,DX Network Services Ltd,83478734,"5,679.02",
Crown Prosecution Service ,18/05/22,Courier Services,Yorkshire and Humberside Area Business Centre,DX Network Services Ltd,83478734,"2,694.30",
Crown Prosecution Service ,18/05/22,Courier Services,London North Complex Casework Unit,DX Network Services Ltd,83478734,18.27,
Crown Prosecution Service ,18/05/22,Courier Services,Mersey Cheshire Area Business Centre,DX Network Services Ltd,83478734,"1,105.86",
Crown Prosecution Service ,18/05/22,Courier Services,North East Area Business Centre,DX Network Services Ltd,83478734,768.55,
Crown Prosecution Service ,18/05/22,Courier Services,South West Area Business Centre,DX Network Services Ltd,83478734,"2,334.48",
Crown Prosecution Service ,18/05/22,Courier Services,West Midlands Area Business Centre,DX Network Services Ltd,83478734,"4,385.44",
Crown Prosecution Service ,18/05/22,Courier Services,Cymru Wales Area Business Centre,DX Network Services Ltd,83478734,"1,684.32",
Crown Prosecution Service ,18/05/22,Courier Services,North West Area Business Centre,DX Network Services Ltd,83478734,"4,864.77",
Crown Prosecution Service ,19/05/22,Crown Court Graduated Fee Scheme,London North Complex Casework Unit,2 Harcourt Buildings,115282/J Osborne,"30,555.00",Y
Crown Prosecution Service ,19/05/22,Crown Court Graduated Fee Scheme,Mersey Cheshire Crown Court Unit,Harrington Street Chambers,1163444/AJF,"25,962.60",Y
Crown Prosecution Service ,19/05/22,Crown Court Graduated Fee Scheme,London North RASSO,Furnival Chambers,170263 MMO Mukendi,"29,427.90",Y
Crown Prosecution Service ,19/05/22,Crown Court Graduated Fee Scheme,Thames and Chiltern RASSO Unit,23 Essex Street Chambers,191751-HUS,"29,329.80",Y
Crown Prosecution Service ,19/05/22,Recoverable VAT control,Balance Sheet,Oracle Corporation UK Ltd,460026034,"31,450.45",Y
Crown Prosecution Service ,19/05/22,IT non capital software licences,Legal Reference and ICT Licenses,Oracle Corporation UK Ltd,460026034,"157,252.25",
Crown Prosecution Service ,19/05/22,Crown Court Very High Cost Cases Full Scheme,Pre Enforcement South,Chambers of Andrew Mitchell QC 33 Chancery Lane,95797MR,"32,747.00",Y
Crown Prosecution Service ,20/05/22,IT non capital software licences,Other Corporate Programme Payments,Anaplan Ltd Maidenhead,10034645,"277,704.00",Y
Crown Prosecution Service ,20/05/22,Crown Court Graduated Fee Scheme,Thames Chiltern Crown Court Unit,23 Essex Street Chambers,193004-MRO,"25,718.88",Y
Crown Prosecution Service ,20/05/22,Crown Court Graduated Fee Scheme,SEOC Team 2,36 Bedford Row,193190-JFK,"49,090.44",Y
Crown Prosecution Service ,20/05/22,Recoverable VAT control,Balance Sheet,Trustmarque Solutions Ltd,2341373,"10,878.04",Y
Crown Prosecution Service ,20/05/22,IT non capital software licences,Legal Reference and ICT Licenses,Trustmarque Solutions Ltd,2341373,"54,390.18",
Crown Prosecution Service ,20/05/22,External legal advice - Civil litigation,Other Corporate Programme Payments,Government Legal Department,509238,"136,176.68",Y
Crown Prosecution Service ,23/05/22,National non domestic rates,Estate and FM: Programme,Government Property Agency London,00000001/18204,"21,856.25",
Crown Prosecution Service ,23/05/22,Landlord service charge,Estate and FM: Programme,Government Property Agency London,00000001/18204,"21,374.50",
Crown Prosecution Service ,23/05/22,Crown Court Graduated Fee Scheme,West Midlands Complex Casework Unit,6 Kings Bench Walk- Chambers of D Fisher & D Perry,101520 DEN,"64,318.68",Y
Crown Prosecution Service ,23/05/22,IT non capital software licences,Legal Reference and ICT Licenses,Truststream Security Solutions Limited Edinburgh,1082,"251,057.22",Y
Crown Prosecution Service ,23/05/22,Crown Court Graduated Fee Scheme,London North Complex Casework Unit,5 Paper Buildings,113128/DH1,"27,042.00",Y
Crown Prosecution Service ,23/05/22,Recoverable VAT control,Balance Sheet,Accenture (UK) Ltd London,3003546014,"18,875.00",Y
Crown Prosecution Service ,23/05/22,IT services,DTS Programme Project Cost,Accenture (UK) Ltd London,3003546014,"94,375.00",
Crown Prosecution Service ,23/05/22,Crown Court Graduated Fee Scheme,West Midlands Complex Casework Unit,St Philips Chambers,661616 CRA T,"25,444.80",Y
Crown Prosecution Service ,23/05/22,Crown Court Graduated Fee Scheme,West Midlands Complex Casework Unit,St Philips Chambers,661616 JBA TRIAL,"37,849.80",Y
Crown Prosecution Service ,23/05/22,Recoverable VAT control,Balance Sheet,AVR Transcription Ltd Bolton,APR22-35740,"9,513.64",Y
Crown Prosecution Service ,23/05/22,Transcriptions and Translation,Other Corporate Programme Payments,AVR Transcription Ltd Bolton,APR22-35740,"47,568.23",
Crown Prosecution Service ,23/05/22,Recoverable VAT control,Balance Sheet,CGI IT UK Ltd,GB014082106,"5,045.00",Y
Crown Prosecution Service ,23/05/22,IT services,Apps and Hosting Contract,CGI IT UK Ltd,GB014082106,"25,225.00",
Crown Prosecution Service ,23/05/22,Recoverable VAT control,Balance Sheet,CGI IT UK Ltd,GB014082223,"13,184.40",Y
Crown Prosecution Service ,23/05/22,IT services,Apps and Hosting Contract,CGI IT UK Ltd,GB014082223,"65,922.00",
Crown Prosecution Service ,23/05/22,Recoverable VAT control,Balance Sheet,CGI IT UK Ltd,GB14082222,"13,184.40",Y
Crown Prosecution Service ,23/05/22,IT services,Apps and Hosting Contract,CGI IT UK Ltd,GB14082222,"65,922.00",
Crown Prosecution Service ,23/05/22,Other Staff Costs,CFO Finance Operations,Edenred,INV25800532,"3,404.04",
Crown Prosecution Service ,23/05/22,Salary sacrifice suspense,Balance Sheet,Edenred,INV25800532,"25,787.66",
Crown Prosecution Service ,23/05/22,Crown Court Graduated Fee Scheme,London North Complex Casework Unit,2 Harcourt Buildings,PCA/115718,"79,531.80",Y
Crown Prosecution Service ,23/05/22,Crown Court Graduated Fee Scheme,West Midlands Complex Casework Unit,3 Raymond Buildings,RWD/252588,"57,300.60",Y
Crown Prosecution Service ,24/05/22,Crown Court Very High Cost Cases Full Scheme,Cymru Wales Complex Casework Unit,30 Park Place Chambers,618080-16/AJ,"31,210.50",
Crown Prosecution Service ,25/05/22,Other managed/contractor services,DID Security and Information,Iron Mountain Ltd,0700643,"79,631.40",Y
Crown Prosecution Service ,25/05/22,Crown Court Graduated Fee Scheme,London North Complex Casework Unit,2 Kings Bench Walk London,294116-SD,"39,019.20",Y
Crown Prosecution Service ,25/05/22,Crown Court Graduated Fee Scheme,West Midlands Complex Casework Unit,Citadel Chambers,NCB/690276/SALANGY1,"34,797.90",Y
Crown Prosecution Service ,25/05/22,IT non capital software licences,DTS Programme Project Cost,Specialist Computer Centres Plc,OP/ N142764,"27,310.52",Y
Crown Prosecution Service ,26/05/22,Crown Court Graduated Fee Scheme,West Midlands Complex Casework Unit,6 Kings Bench Walk- Chambers of D Fisher & D Perry,102362 SS1,"59,325.65",Y
Crown Prosecution Service ,26/05/22,Crown Court Graduated Fee Scheme,West Midlands Complex Casework Unit,6 Kings Bench Walk- Chambers of D Fisher & D Perry,102632 TB1,"102,662.10",Y
Crown Prosecution Service ,26/05/22,Crown Court Graduated Fee Scheme,North East Crown Court Unit,Fountain Chambers,118529 Bulmer JMH,"34,574.04",Y
Crown Prosecution Service ,26/05/22,Crown Court Graduated Fee Scheme,West Midlands Complex Casework Unit,2 Kings Bench Walk London,294396-OPW,"34,080.60",Y
Crown Prosecution Service ,27/05/22,General Management Consultancy Advice,DTS Programme Project Cost,PA Consulting Services Limited,0000016737,"173,371.54",Y
Crown Prosecution Service ,27/05/22,Crown Court Graduated Fee Scheme,London North Complex Casework Unit,Furnival Chambers,168334 JDS Samuels,"26,023.20",Y
Crown Prosecution Service ,27/05/22,Crown Court Graduated Fee Scheme,Thames Chiltern Crown Court Unit,Furnival Chambers,171377 RC Mikleaunia,"27,611.52",Y
Crown Prosecution Service ,27/05/22,Data Communications,PSN Services Contract,Lumen Technologies UK Ltd,292633502/1088424,"32,054.94",Y
Crown Prosecution Service ,27/05/22,Crown Court Graduated Fee Scheme,London North Complex Casework Unit,6 Kings Bench Walk- Chambers of D Fisher & D Perry,99661 JH.,"79,377.00",Y
Crown Prosecution Service ,27/05/22,Crown Court Graduated Fee Scheme,London North Complex Casework Unit,5 King's Bench Walk,CP170797,"39,082.80",Y
Crown Prosecution Service ,27/05/22,Crown Court Graduated Fee Scheme,London North Complex Casework Unit,5 King's Bench Walk,DRQC171920.1,"25,772.40",Y
Crown Prosecution Service ,27/05/22,IT services,Apps and Hosting Contract,CGI IT UK Ltd,GB014082301,"23,391.68",
Crown Prosecution Service ,27/05/22,Recoverable VAT control,Balance Sheet,CGI IT UK Ltd,GB014082301,"4,678.34",Y
Crown Prosecution Service ,27/05/22,Recoverable VAT control,Balance Sheet,CGI IT UK Ltd,GB014082447,"9,930.69",Y
Crown Prosecution Service ,27/05/22,IT services,Apps and Hosting Contract,CGI IT UK Ltd,GB014082447,"49,653.45",
Crown Prosecution Service ,27/05/22,Recoverable VAT control,Balance Sheet,FlyForm LTD Cardiff,INV-10749,"4,379.21",Y
Crown Prosecution Service ,27/05/22,IT services,DTS Programme Project Cost,FlyForm LTD Cardiff,INV-10749,"21,895.99",
Crown Prosecution Service ,30/05/22,Crown Court Graduated Fee Scheme,Mersey Cheshire Complex Casework Unit,Harrington Street Chambers,1160778/IU,"43,390.14",Y
Crown Prosecution Service ,30/05/22,Crown Court Graduated Fee Scheme,London North Complex Casework Unit,2 Hare Court Chambers -Chambers of Orlando Pownall,118100,"51,564.96",Y
Crown Prosecution Service ,30/05/22,Crown Court Graduated Fee Scheme,North West Complex Casework Unit,St Pauls Chambers Leeds,165163 Adelite JS,"63,328.86",Y
Crown Prosecution Service ,30/05/22,Crown Court Graduated Fee Scheme,East Midlands Crown Court Section,36 Bedford Row,214617-CJB,"53,789.28",Y
Crown Prosecution Service ,30/05/22,Crown Court Graduated Fee Scheme,East Midlands Crown Court Section,36 Bedford Row,214617-WH,"111,837.84",Y
Crown Prosecution Service ,30/05/22,Crown Court Very High Cost Cases Full Scheme,Cymru Wales Complex Casework Unit,30 Park Place Chambers,618080-16/EE,"27,288.00",
Crown Prosecution Service ,30/05/22,Recruitment general costs,PF Senior Staffing,GatenbySanderson Ltd Leeds,62583,"27,840.00",Y
Crown Prosecution Service ,30/05/22,Recoverable VAT control,Balance Sheet,CGI IT UK Ltd,GB014082609,"18,368.83",Y
Crown Prosecution Service ,30/05/22,IT services,Service Desk Contract,CGI IT UK Ltd,GB014082609,"91,844.13",
